bitfinex-derivatives/quotes_ETHF0:USTF0_20251001
["timestamp","ask_amount","ask_price","bid_price","bid_amount"]
[1759335664673,0.8918,4335.5,4335.4,1.08072]
[1759335665372,0.8918,4335.5,4335.4,1.41382]
[1759335666176,0.8918,4335.5,4335.4,1.08072]
[1759335666769,3.36242881,4335.6,4335.5,0.76571]
[1759335666969,3.36242881,4335.6,4335.5,1.09881]
[1759335667174,3.36242881,4335.6,4335.5,41.89881]
[1759335667574,0.2937,4336.0,4335.5,41.89881]
[1759335667575,0.2937,4336.0,4335.9,1.17878]
[1759335667774,1.03675,4337.8,4335.9,1.17878]
[1759335667775,0.0761,4337.1,4337.0,1.30877]
[1759335668077,0.57988968,4337.1,4337.0,1.30877]
[1759335668272,0.57988968,4337.1,4337.0,42.10877]
[1759335668679,0.58208088,4337.1,4337.0,42.11097419]
[1759335668877,0.99684088,4337.1,4337.0,42.11097419]
[1759335669578,0.99684088,4337.1,4337.0,41.48610419]
[1759335669881,6.04444088,4337.1,4337.0,41.21697419]
[1759335670680,6.04444088,4337.1,4337.0,40.80220419]
[1759335670874,0.56703,4336.5,4336.4,0.41483]
[1759335671076,3.86378968,4336.5,4336.4,0.96863]
[1759335671376,8.86378968,4336.5,4336.4,0.96863]
[1759335671980,8.86378968,4336.5,4336.4,41.77120662]
[1759335673282,8.86378968,4336.5,4336.4,40.80257662]
[1759335673283,8.91138968,4336.5,4336.4,40.80257662]
[1759335673479,8.91138968,4336.5,4336.4,41.21740662]
[1759335674082,3.86378968,4336.5,4336.4,41.55050662]
[1759335674284,8.86378968,4336.5,4336.4,41.55050662]
[1759335674583,5.89098968,4336.5,4336.4,41.55050662]
[1759335675177,0.50378968,4336.5,4336.4,41.55050662]
[1759335675374,0.235,4336.9,4336.8,0.41479]
[1759335675580,0.73473047,4336.9,4336.8,1.17869]
[1759335675986,0.73473047,4336.9,4336.8,41.97869]
[1759335679178,0.49973047,4336.9,4336.8,41.97869]
[1759335682890,0.91451047,4336.9,4336.8,41.97869]
[1759335683090,0.98781047,4336.9,4336.8,41.3538]
[1759335683290,5.98781047,4336.9,4336.8,41.3538]
[1759335683590,5.98781047,4336.9,4336.8,41.1331]
[1759335684187,5.91451047,4336.9,4336.8,41.54789]
[1759335684388,0.49973047,4336.9,4336.8,41.54789]
[1759335684779,0.91451047,4336.9,4336.8,41.54789]
[1759335685391,1.14951047,4336.9,4336.8,41.54789]
[1759335685783,1.03637683,4336.9,4336.8,41.54789]
[1759335686689,0.38659683,4336.9,4336.8,41.54789]
[1759335686884,0.38659683,4336.9,4336.8,41.78289]
[1759335687090,0.0021912,4337.1,4337.0,1.32337]
[1759335687284,3.2078,4337.5,4337.4,0.64194]
[1759335687490,3.2078,4337.5,4337.4,1.42424]
[1759335687881,0.235,4337.9,4337.8,0.4147]
[1759335688087,3.2078,4338.0,4337.9,0.7745]
[1759335688291,3.21079792,4338.0,4337.9,1.0095]
[1759335688491,3.21079792,4338.0,4337.9,41.8095]
[1759335694397,3.54129792,4338.0,4337.9,41.5745]
[1759335694804,8.66989792,4338.0,4337.9,40.8]
[1759335695098,8.77629792,4338.0,4337.9,41.1271]
[1759335695299,3.44579792,4338.0,4337.9,41.1271]
[1759335695901,3.90489792,4338.0,4337.9,40.8]
[1759335696291,3.77629792,4338.0,4337.9,40.8]
[1759335696492,3.77629792,4338.0,4337.9,41.1271]
[1759335697101,0.2182,4337.4,4337.3,0.7745]
[1759335697299,1.42535,4337.4,4337.3,0.5543]
[1759335697700,3.2078,4337.5,4336.4,4.24747662]
[1759335697701,0.2182,4336.8,4336.7,0.86221]
[1759335698102,0.2182,4336.8,4336.7,41.98931]
[1759335698302,0.5487,4336.8,4336.7,41.98931]
[1759335698502,0.2182,4336.8,4336.7,41.98931]
[1759335698807,0.5487,4336.8,4336.7,41.5745]
[1759335699101,0.71388544,4336.8,4336.7,41.5745]
[1759335702509,1.04438544,4336.8,4336.7,41.5745]
[1759335703615,0.49568544,4336.8,4336.7,41.5745]
[1759335704311,0.91048544,4336.8,4336.7,41.98931]
[1759335704712,0.49568544,4336.8,4336.7,42.22431]
[1759335704907,3.2078,4337.0,4336.9,1.18929]
[1759335705102,4.11784067,4337.0,4336.9,1.42429]
[1759335705304,3.2078,4337.0,4336.9,1.42429]
[1759335705505,3.62258,4337.0,4336.9,1.42429]
[1759335705708,3.2078,4337.0,4336.9,1.42429]
[1759335706217,3.62258,4337.0,4336.9,1.42429]
[1759335706810,4.33611923,4337.0,4336.9,1.18929]
[1759335707108,3.70313923,4337.0,4336.9,1.18929]
[1759335707313,3.2078,4337.0,4336.9,1.18929]
[1759335707508,3.62258,4337.0,4336.9,1.18929]
[1759335707710,3.2078,4337.0,4336.9,1.18929]
[1759335707909,3.62258,4337.0,4336.9,1.18929]
[1759335708111,4.11793356,4337.0,4336.9,1.18929]
[1759335708413,3.62258,4337.0,4336.9,1.18929]
[1759335708713,4.11794239,4337.0,4336.9,1.18929]
[1759335708914,3.62258,4337.0,4336.9,1.18929]
[1759335709115,4.33632461,4337.0,4336.9,1.0095]
[1759335709814,4.33632461,4337.0,4336.9,1.42429]
[1759335710113,4.11812461,4337.0,4336.9,1.42429]
[1759335710313,4.11797166,4337.0,4336.9,1.42429]
[1759335711110,4.33617166,4337.0,4336.9,1.0095]
[1759335711308,4.33617166,4337.0,4336.9,1.42429]
[1759335711709,3.84078,4337.0,4336.9,1.42429]
[1759335711912,4.33601717,4337.0,4336.9,1.42429]
[1759335712816,3.70303717,4337.0,4336.9,1.42429]
[1759335713620,3.2078,4337.0,4336.9,1.42429]
[1759335714613,3.62258,4337.0,4336.9,1.42429]
[1759335716615,4.06208,4337.0,4336.9,1.0095]
[1759335716919,4.06208,4337.0,4336.9,0.5543]
[1759335716920,5.11773238,4337.0,4336.9,0.5543]
[1759335717814,5.11773238,4337.0,4336.9,0.3271]
[1759335718115,4.57493238,4337.0,4336.9,0.62749]
[1759335718316,5.11773238,4337.0,4336.9,0.7506]
[1759335719108,4.79233238,4337.0,4336.9,1.16539]
[1759335719313,3.92515238,4337.0,4336.9,1.16539]
[1759335719514,0.49525238,4337.0,4336.9,1.16539]
[1759335719821,0.64977,4337.1,4337.0,1.29238]
[1759335720415,0.41476,4337.3,4337.2,0.41476]
[1759335720722,0.91066342,4337.3,4337.2,1.16536]
[1759335720915,1.13276342,4337.3,4337.2,1.16536]
[1759335721115,1.13276342,4337.3,4337.2,41.96536]
[1759335721622,0.71800342,4337.3,4337.2,41.96536]
[1759335722114,0.49590342,4337.3,4337.2,41.96536]
[1759335722322,0.49590342,4337.3,4337.2,42.20036]
[1759335722617,0.87181,4337.8,4337.7,0.2127]
[1759335722812,0.73101888,4337.8,4337.7,0.7506]
[1759335723013,1.13282888,4337.8,4337.7,0.7506]
[1759335723509,1.35022888,4337.8,4337.7,0.7506]
[1759335724012,1.13282888,4337.8,4337.7,0.7506]
[1759335724318,0.49601888,4337.8,4337.7,0.7506]
[1759335724920,0.49601888,4337.8,4337.7,41.5506]
[1759335729617,0.49601888,4337.8,4337.7,41.96532]
[1759335732727,0.00299792,4338.0,4337.9,1.1653]
[1759335732925,0.00299792,4338.0,4337.9,1.4003]
[1759335733420,0.00299792,4338.0,4337.9,42.2003]
[1759335733619,0.00299792,4338.0,4337.9,47.2003]
[1759335735714,0.74308792,4338.0,4337.9,41.5506]
[1759335735920,0.7649,4337.3,4337.2,0.94676]
[1759335736117,1.26055243,4337.3,4337.1,0.41477]
[1759335736425,0.7649,4336.8,4336.7,0.62751]
[1759335736623,0.1375,4336.5,4336.4,0.41741662]
[1759335736816,4.60600091,4336.5,4336.4,0.41741662]
[1759335737021,5.02083091,4336.5,4336.4,0.00257662]
[1759335737227,9.68083091,4336.5,4336.4,0.00257662]
[1759335737624,9.26600091,4336.5,4336.4,0.00257662]
[1759335737825,4.60600091,4336.5,4336.4,0.21527662]
[1759335738028,4.60600091,4336.5,4336.4,0.53457662]
[1759335738232,4.60600091,4336.5,4336.4,41.56957662]
[1759335741223,4.46850091,4336.5,4336.4,41.56957662]
[1759335742727,4.46850091,4336.5,4336.4,41.33457662]
[1759335742928,4.46850091,4336.5,4336.4,41.56957662]
[1759335743323,4.59380091,4336.5,4336.4,41.01527662]
[1759335744232,4.59380091,4336.5,4336.4,41.33197662]
[1759335744632,4.46850091,4336.5,4336.4,41.33197662]
[1759335746935,4.88333091,4336.5,4336.4,41.33197662]
[1759335748938,4.55793091,4336.5,4336.4,41.33197662]
[1759335749236,4.90323091,4336.5,4336.4,41.56697662]
[1759335749839,4.55793091,4336.5,4336.4,41.56697662]
[1759335750032,4.90323091,4336.5,4336.4,41.56697662]
[1759335751234,4.55793091,4336.5,4336.4,41.56697662]
[1759335751439,4.46373091,4336.5,4336.4,41.56697662]
[1759335751739,4.34426666,4336.5,4336.4,41.56697662]
[1759335752437,4.34426666,4336.5,4336.4,41.33197662]
[1759335752639,4.34426666,4336.5,4336.4,41.56697662]
[1759335753040,4.34426666,4336.5,4336.4,41.33197662]
[1759335753242,4.34426666,4336.5,4336.4,41.56697662]
[1759335755128,4.46956666,4336.5,4336.4,40.80257662]
[1759335755535,1.19968,4335.9,4335.8,0.5343]
[1759335755930,1.43468,4335.9,4335.8,41.3343]
[1759335756337,1.93112301,4335.9,4335.8,41.3343]
[1759335756532,1.93112301,4335.9,4335.8,41.33601571]
[1759335757538,3.2078,4336.2,4336.1,0.5402]
[1759335757842,0.41486,4336.2,4336.1,0.9928]
[1759335758845,3.2078,4336.8,4336.7,0.7578]
[1759335759036,3.70412256,4336.8,4336.7,0.9928]
[1759335759237,4.11892256,4336.8,4336.7,0.9928]
[1759335759436,4.11892256,4336.8,4336.7,41.7928]
[1759335763037,4.11892256,4336.8,4336.7,41.5578]
[1759335763238,4.11892256,4336.8,4336.7,41.1167]
[1759335763239,4.46422256,4336.8,4336.7,41.1167]
[1759335763836,3.70412256,4336.8,4336.7,41.1167]
[1759335764042,4.11892256,4336.8,4336.7,41.1167]
[1759335765244,4.46422256,4336.8,4336.7,41.1167]
[1759335765444,4.11892256,4336.8,4336.7,41.3517]
[1759335765843,4.46422256,4336.8,4336.7,41.3517]
[1759335766651,4.11892256,4336.8,4336.7,41.3517]
[1759335767447,0.4395,4335.4,4335.0,1.97157429]
[1759335767656,1.19979,4334.8,4334.7,0.5343]
[1759335767951,0.99053,4334.4,4334.3,0.7578]
[1759335768151,4.69634534,4334.4,4334.3,0.7578]
[1759335768351,4.35048753,4334.4,4334.3,0.7578]
[1759335768550,4.35295316,4334.4,4334.3,41.79563018]
[1759335772648,4.12275316,4334.4,4334.3,41.79563018]
[1759335772854,3.62529563,4334.4,4334.3,41.79563018]
[1759335775848,0.00246563,4334.4,4334.3,46.79563018]
[1759335776849,0.00246563,4334.4,4334.3,46.55963018]
[1759335777455,0.00246563,4334.4,4334.3,41.79563018]
[1759335777962,0.00246563,4334.4,4334.3,41.55963018]
[1759335778156,0.00246563,4334.4,4334.3,41.79563018]
[1759335778960,0.41748563,4334.4,4334.3,41.79563018]
[1759335779861,0.41748563,4334.4,4334.3,41.55963018]
[1759335780055,0.41748563,4334.4,4334.3,41.79563018]
[1759335780360,0.41748563,4334.4,4334.3,42.21066018]
[1759335780859,0.41748563,4334.4,4334.3,41.97466018]
[1759335781060,0.41748563,4334.4,4334.3,42.20966018]
[1759335781962,0.00246563,4334.4,4334.3,42.20966018]
[1759335783755,0.41748563,4334.4,4334.3,42.20966018]
[1759335784863,0.00246563,4334.4,4334.3,42.20966018]
[1759335785362,0.00246563,4334.4,4334.3,41.55963018]
[1759335785564,0.00246563,4334.4,4334.3,41.79463018]
[1759335785762,0.41748563,4334.4,4334.3,41.97466018]
[1759335786057,0.41748563,4334.4,4334.3,42.20966018]
[1759335786556,0.00246563,4334.4,4334.3,42.20966018]
[1759335789456,4.24511,4335.4,4334.3,42.20966018]
[1759335789767,3.2078,4336.4,4336.3,0.6708]
[1759335789960,3.2078,4336.4,4336.3,1.414]
[1759335790162,3.2078,4336.4,4336.3,42.214]
[1759335790357,4.95337,4337.0,4336.9,0.3312]
[1759335790662,0.8085,4336.1,4336.0,0.3312]
[1759335790857,1.1443,4336.1,4336.0,0.5672]
[1759335791064,1.1443,4336.1,4336.0,41.3672]
[1759335791465,1.1443,4336.1,4336.0,41.1312]
[1759335791667,1.1443,4336.1,4336.0,41.3672]
[1759335791968,1.1443,4336.1,4336.0,41.1312]
[1759335792267,4.3521,4336.1,4336.0,41.3672]
[1759335792971,4.3521,4336.1,4336.0,40.8]
[1759335793164,9.3521,4336.1,4336.0,41.036]
[1759335794463,9.3521,4336.1,4336.0,40.8]
[1759335797561,1.55924,4335.2,4335.1,1.179]
[1759335797765,4.76704,4335.2,4335.1,1.179]
[1759335798073,4.76704,4335.2,4335.1,1.414]
[1759335798460,4.76704,4335.2,4335.1,42.214]
[1759335801672,4.76704,4335.2,4335.1,41.979]
[1759335801872,4.76704,4335.2,4335.1,41.4708]
[1759335801873,5.27487586,4335.2,4335.1,41.4708]
[1759335802067,5.46101799,4335.2,4335.1,40.8]
[1759335802269,10.69601799,4335.2,4335.1,40.8]
[1759335802573,0.7403,4334.6,4334.5,1.331]
[1759335802776,4.93363586,4334.6,4334.5,1.566]
[1759335803071,4.93363586,4334.6,4334.5,42.366]
[1759335803467,4.93363586,4334.6,4334.5,42.1724]
[1759335804274,4.93363586,4334.6,4334.5,41.9374]
[1759335804476,4.93363586,4334.6,4334.5,42.1724]
[1759335805562,0.41501,4334.4,4334.3,0.00183018]
[1759335805771,0.41501,4334.4,4333.0,0.1936]
[1759335805772,0.88677,4333.8,4333.7,0.6321]
[1759335805971,4.60240586,4333.8,4333.7,0.7611]
[1759335806273,4.13070586,4333.8,4333.7,41.9335]
[1759335806772,4.13276474,4333.8,4333.7,41.93594711]
[1759335807365,4.13276474,4333.8,4333.7,41.80694711]
[1759335807564,4.13276474,4333.8,4333.7,42.04194711]
[1759335809277,3.62492888,4333.8,4333.7,42.04194711]
[1759335811774,0.41712888,4333.8,4333.7,42.04194711]
[1759335812777,0.41712888,4333.8,4333.7,42.45702711]
[1759335812979,0.41712888,4333.8,4333.7,42.04194711]
[1759335813778,4.24538,4334.3,4333.7,46.66954711]
[1759335813979,0.41507,4333.9,4333.8,0.41507]
[1759335814178,3.2078,4334.3,4333.8,0.41507]
[1759335814388,3.62282,4334.3,4334.2,40.8]
[1759335814681,4.59667809,4334.3,4334.2,41.035]
[1759335816282,4.59667809,4334.3,4334.2,40.8]
[1759335816678,4.59667809,4334.3,4334.2,41.035]
[1759335818989,4.59669809,4334.3,4334.2,41.45005]
[1759335819281,4.09738093,4334.3,4334.2,41.035]
[1759335819484,4.59656932,4334.3,4334.2,41.035]
[1759335819681,4.09738093,4334.3,4334.2,41.035]
[1759335819878,4.59656914,4334.3,4334.2,41.035]
[1759335820084,4.59656914,4334.3,4334.2,40.8]
[1759335820280,4.59656914,4334.3,4334.2,41.035]
[1759335823392,4.59656914,4334.3,4334.2,40.8]
[1759335823691,4.59656914,4334.3,4334.2,41.035]
[1759335827396,4.59656914,4334.3,4334.2,40.8]
[1759335827695,4.59656914,4334.3,4334.2,41.035]
[1759335832491,1.38876914,4334.3,4334.2,41.035]
[1759335835402,4.59656914,4334.3,4334.2,41.035]
[1759335836700,4.59656914,4334.3,4334.2,40.8]
[1759335837100,4.59656914,4334.3,4334.2,41.035]
[1759335839007,4.59656914,4334.3,4334.2,40.8]
[1759335839203,0.72918,4333.8,4333.7,0.00244711]
[1759335839507,0.1837,4333.0,4332.1,4.85842222]
[1759335839809,0.4679,4333.2,4332.5,0.41521]
[1759335840009,0.4679,4332.8,4332.6,0.235]
[1759335840207,0.4679,4332.8,4332.7,45.8]
[1759335840407,0.88308,4332.8,4332.7,45.8]
[1759335841208,1.3844238,4332.8,4332.7,41.035]
[1759335841405,0.88308,4332.8,4332.7,41.035]
[1759335844013,0.88308,4332.8,4332.7,40.8]
[1759335844209,0.88308,4332.8,4332.7,41.035]
[1759335849712,0.1837,4333.0,4332.7,46.035]
[1759335849913,0.1837,4333.5,4333.4,0.41512]
[1759335850118,0.1837,4334.0,4333.8,0.41508]
[1759335850311,0.1837,4334.0,4333.9,44.2428]
[1759335850815,0.10257808,4334.0,4333.9,49.2428]
[1759335851116,0.10257808,4334.0,4333.9,49.0078]
[1759335851312,0.57047808,4334.0,4333.9,44.2428]
[1759335851914,0.10257808,4334.0,4333.9,49.2428]
[1759335853715,0.57047808,4334.0,4333.9,49.2428]
[1759335854112,0.00284093,4334.3,4334.2,0.41504]
[1759335854316,0.00284093,4334.3,4334.2,0.65004]
[1759335854823,0.47074093,4334.3,4334.2,41.45004]
[1759335855023,0.00284093,4334.3,4334.2,46.45004]
[1759335855710,0.47074093,4334.3,4334.2,46.45004]
[1759335855911,0.00284093,4334.3,4334.2,46.45004]
[1759335857219,0.6516,4335.0,4334.9,0.41497]
[1759335857424,0.6516,4335.0,4334.9,3.85777]
[1759335857822,0.6516,4335.0,4334.9,44.65777]
[1759335858317,0.65382988,4335.0,4334.9,44.65777]
[1759335859823,0.65382988,4335.0,4334.9,44.42277]
[1759335860024,0.65382988,4335.0,4334.9,44.65777]
[1759335860224,0.1837,4336.0,4335.4,0.41492]
[1759335860418,0.1837,4336.0,4335.9,0.41487]
[1759335860619,0.1837,4336.0,4335.9,0.64987]
[1759335860817,0.1837,4336.0,4335.9,41.44987]
[1759335861115,0.1837,4336.0,4335.9,44.65767]
[1759335861311,0.1861266,4336.0,4335.9,44.65929529]
[1759335862222,0.6634266,4336.0,4335.9,44.65929529]
[1759335862427,0.1861266,4336.0,4335.9,44.65929529]
[1759335862623,0.6634266,4336.0,4335.9,44.65929529]
[1759335865827,0.6634266,4336.0,4335.9,44.42429529]
[1759335866028,0.6634266,4336.0,4335.9,44.65929529]
[1759335869133,0.1861266,4336.0,4335.9,44.65929529]
[1759335869320,0.0024266,4336.0,4335.9,44.65929529]
[1759335869726,0.1929266,4336.0,4335.9,44.65929529]
[1759335869934,0.6636266,4336.0,4335.9,44.65929529]
[1759335870534,0.6636266,4336.0,4335.9,44.42429529]
[1759335870735,0.6636266,4336.0,4335.9,80.64029529]
[1759335872235,0.6636266,4336.0,4335.9,44.42429529]
[1759335872531,0.6636266,4336.0,4335.9,80.63929529]
[1759335872728,0.6636266,4336.0,4335.9,80.63829529]
[1759335873331,0.1929266,4336.0,4335.9,80.63829529]
[1759335873536,0.6636266,4336.0,4335.9,80.63829529]
[1759335874234,0.1837,4336.5,4336.4,0.41482]
[1759335874535,0.1837,4336.5,4336.4,3.85762]
[1759335874936,0.1837,4336.5,4336.4,44.65762]
[1759335875137,0.18579588,4336.5,4336.4,44.65762]
[1759335876232,0.00209588,4336.5,4336.4,44.65762]
[1759335877432,0.47279588,4336.5,4336.4,44.65762]
[1759335877733,0.66329588,4336.5,4336.4,44.65762]
[1759335878037,0.66329588,4336.5,4336.4,44.42262]
[1759335878340,0.66329588,4336.5,4336.4,80.63362]
[1759335879940,0.00209588,4336.5,4336.4,80.63362]
[1759335881542,0.00209588,4336.5,4336.4,80.63162]
[1759335882740,0.4707,4336.8,4336.7,0.4148]
[1759335882941,0.4707,4336.8,4336.7,0.6498]
[1759335883645,0.1885,4337.0,4336.9,0.41478]
[1759335883646,0.6592,4337.0,4336.9,0.41478]
[1759335883840,0.66138835,4337.0,4336.9,3.85758]
[1759335884152,0.00218835,4337.0,4336.9,3.85758]
[1759335884345,0.00218835,4337.0,4336.9,44.65758]
[1759335888454,0.47288835,4337.0,4336.9,44.65758]
[1759335889359,0.66338835,4337.0,4336.9,44.65758]
[1759335890361,0.00218835,4337.0,4336.9,44.65758]
[1759335891664,0.47288835,4337.0,4336.9,44.65758]
[1759335891858,0.47288835,4337.0,4336.9,44.42258]
[1759335892060,0.66338835,4337.0,4336.9,44.42258]
[1759335892357,0.66338835,4337.0,4336.9,80.62458]
[1759335894659,0.66338835,4337.0,4336.9,80.62358]
[1759335898160,0.66338835,4337.0,4336.9,44.42258]
[1759335898466,0.66338835,4337.0,4336.9,44.65758]
[1759335901972,0.8216,4337.5,4337.4,1.04003]
[1759335902161,0.8216,4337.5,4337.4,4.48283]
[1759335902770,0.8216,4337.5,4337.4,45.28283]
[1759335902974,0.82340738,4337.5,4337.4,45.28283]
[1759335903671,0.82340738,4337.5,4337.4,45.51303]
[1759335903875,1.00040738,4337.5,4337.4,45.51303]
[1759335904371,1.00040738,4337.5,4337.4,45.28283]
[1759335904874,1.00040738,4337.5,4337.4,45.51303]
[1759335905170,0.49270738,4337.5,4337.4,45.51303]
[1759335905366,0.8236,4338.0,4337.9,0.41468]
[1759335905563,1.31915331,4338.0,4337.9,4.97188]
[1759335905759,1.31915331,4338.0,4337.9,4.48278]
[1759335905971,1.31915331,4338.0,4337.9,45.28278]
[1759335906273,0.8263826,4338.0,4337.9,45.28278]
[1759335906672,1.32187942,4338.0,4337.9,44.65748]
[1759335906865,0.8263826,4338.0,4337.9,44.65748]
[1759335907469,1.3172826,4338.0,4337.9,44.65748]
[1759335911268,1.3172826,4338.0,4337.9,45.14658]
[1759335911463,1.3172826,4338.0,4337.9,44.65748]
[1759335912566,1.3172826,4338.0,4337.9,45.14658]
[1759335913272,1.3172826,4338.0,4337.9,44.91158]
[1759335913569,1.3172826,4338.0,4337.9,45.14658]
[1759335914371,1.1267826,4338.0,4337.9,45.14658]
[1759335915775,1.1267826,4338.0,4337.0,1.83752222]
[1759335915776,0.6736,4337.0,4336.3,2.06545222]
[1759335915967,0.6736,4337.0,4336.1,0.41485]
[1759335915968,1.124,4336.2,4336.1,0.41485]
[1759335916274,1.124,4336.2,4335.9,0.00162529]
[1759335916275,1.61902801,4336.2,4336.0,0.41486]
[1759335916471,4.82682902,4336.1,4336.0,0.41486]
[1759335916673,4.82682902,4336.1,4336.0,41.44986]
[1759335917478,4.3318,4336.1,4336.0,41.44986]
[1759335917774,4.3318,4336.1,4336.0,41.57316]
[1759335920475,4.3318,4336.1,4336.0,42.20926]
[1759335923071,3.2078,4336.1,4336.0,42.47126]
[1759335923275,1.088,4336.5,4336.4,1.91933]
[1759335923477,1.088,4336.5,4336.4,2.15433]
[1759335923672,1.5052,4336.5,4336.4,2.15433]
[1759335923972,1.7706,4336.5,4336.4,42.5395]
[1759335926974,1.7706,4336.5,4336.4,42.95433]
[1759335927172,3.2078,4336.6,4336.5,0.84732]
[1759335927381,3.2078,4336.6,4336.5,2.16702]
[1759335927775,4.7105,4336.6,4336.5,1.89472]
[1759335928072,4.7105,4336.6,4336.5,2.12972]
[1759335928272,4.7105,4336.6,4336.5,1.89472]
[1759335928471,4.7105,4336.6,4336.5,2.12972]
[1759335930280,5.12531,4336.6,4336.5,2.12972]
[1759335930581,4.7105,4336.6,4336.5,2.12972]
[1759335931079,1.5027,4336.6,4336.5,2.12972]
[1759335931970,3.2078,4337.6,4337.5,0.857]
[1759335932178,0.0027826,4338.0,4337.5,1.95829]
[1759335932373,0.8522826,4338.0,4337.9,0.857]
[1759335932571,1.7708826,4338.0,4337.9,41.035]
[1759335932783,1.7708826,4338.0,4337.9,41.6579]
[1759335932982,1.5054826,4338.0,4337.9,41.6579]
[1759335934079,0.0027826,4338.0,4337.9,41.6579]
[1759335935581,0.6559826,4338.0,4337.9,41.6579]
[1759335936887,0.6559826,4338.0,4337.9,41.4229]
[1759335937088,0.0027826,4338.0,4337.9,41.6579]
[1759335939089,0.6559826,4338.0,4337.9,41.6579]
[1759335939390,0.6559826,4338.0,4337.9,41.4229]
[1759335939587,0.6559826,4338.0,4337.9,42.07258]
[1759335939789,0.6559826,4338.0,4337.9,41.83758]
[1759335939989,0.6559826,4338.0,4337.9,42.07258]
[1759335940392,0.6559826,4338.0,4337.9,41.83758]
[1759335940591,0.6559826,4338.0,4337.9,42.07258]
[1759335941485,0.0027826,4338.0,4337.9,42.07258]
[1759335945689,9.5438526,4338.0,4337.9,40.8]
[1759335945886,10.05625231,4338.0,4337.9,41.035]
[1759335946291,10.05625231,4338.0,4337.9,40.8]
[1759335946496,1.5027,4337.4,4337.3,1.47015]
[1759335946697,4.7105,4337.4,4337.3,2.12965]
[1759335946996,4.7105,4337.4,4337.3,42.92965]
[1759335947199,5.12524,4337.4,4337.3,42.92965]
[1759335947694,4.7105,4337.4,4337.3,42.92965]
[1759335948597,5.12524,4337.4,4337.3,42.92965]
[1759335948790,5.12524,4337.4,4337.3,42.2799]
[1759335948988,5.12524,4337.4,4337.3,42.5149]
[1759335950800,4.7105,4337.4,4337.3,42.5149]
[1759335951001,3.2078,4337.4,4337.3,42.5149]
[1759335951495,1.50021,4337.7,4337.6,1.89462]
[1759335951702,1.59824329,4337.7,4337.6,2.12962]
[1759335951895,2.01544329,4337.7,4337.6,2.12962]
[1759335952204,2.43015329,4337.7,4337.6,2.12962]
[1759335952600,2.01544329,4337.7,4337.6,2.12962]
[1759335953099,1.59824329,4337.7,4337.6,2.12962]
[1759335953405,2.01295329,4337.7,4337.6,2.12962]
[1759335953596,2.43015329,4337.7,4337.6,2.12962]
[1759335954198,2.43015329,4337.7,4337.6,1.4799]
[1759335954398,2.43015329,4337.7,4337.6,1.092]
[1759335954707,2.43015329,4337.7,4337.6,1.50672]
[1759335955205,2.43015329,4337.7,4337.6,2.14442]
[1759335955999,2.43015329,4337.7,4337.3,40.8]
[1759335956304,1.0464,4336.4,4336.3,0.83334]
[1759335956505,4.682,4336.4,4336.3,2.11914]
[1759335956802,5.09684,4336.4,4336.3,42.91914]
[1759335958699,5.09684,4336.4,4336.3,42.5043]
[1759335959803,4.682,4336.4,4336.3,42.5043]
[1759335960807,5.09683,4336.4,4336.3,42.91914]
[1759335962008,4.682,4336.4,4336.3,42.91914]
[1759335962508,3.2078,4336.4,4336.3,42.91914]
[1759335963302,3.62263,4336.4,4336.3,42.91914]
[1759335963710,4.23933,4336.4,4336.3,42.91914]
[1759335963906,3.8245,4336.4,4336.3,42.91914]
[1759335964404,1.45944,4335.2,4335.1,1.24655]
[1759335964604,5.09694,4335.2,4335.1,1.4693]
[1759335964806,5.09694,4335.2,4335.1,1.0666]
[1759335965010,4.2523,4335.2,4335.1,1.7043]
[1759335965403,4.2523,4335.2,4335.1,1.70635922]
[1759335965609,4.2523,4335.2,4335.1,42.50635922]
[1759335966212,3.2078,4335.2,4335.1,42.50635922]
[1759335969114,3.62269,4335.7,4335.6,1.4693]
[1759335969306,4.66719,4335.7,4335.6,1.7043]
[1759335970412,5.09689,4335.7,4335.6,1.7043]
[1759335970614,5.09689,4335.7,4335.6,2.1192]
[1759335971012,5.09691,4335.7,4335.6,2.1192]
[1759335971417,3.2078,4335.7,4335.6,2.1192]
[1759335971616,3.2078,4336.4,4335.9,1.03723]
[1759335971917,3.2078,4336.4,4336.3,1.4693]
[1759335972113,3.8245,4336.4,4336.3,41.6316]
[1759335972318,3.8245,4336.4,4336.3,41.8666]
[1759335972712,3.8245,4336.4,4336.3,42.5043]
[1759335972916,3.2078,4336.4,4336.3,42.5043]
[1759335973117,3.8245,4336.4,4336.3,42.5043]
[1759335973413,3.8245,4336.4,4336.3,42.2693]
[1759335973721,3.2078,4336.4,4336.3,42.5043]
[1759335975421,4.2523,4336.9,4336.8,1.4693]
[1759335975629,4.76512868,4336.9,4336.8,1.7043]
[1759335976116,1.4742,4336.4,4336.3,40.8]
[1759335976311,4.682,4336.4,4336.3,41.035]
[1759335976516,4.682,4336.4,4336.3,41.6727]
[1759335976821,4.682,4336.4,4336.3,41.035]
[1759335977222,0.8575,4336.0,4335.9,0.4185]
[1759335977419,1.4742,4335.9,4335.8,1.8842]
[1759335977716,1.4742,4335.9,4335.8,42.9192]
[1759335978326,0.4278,4336.2,4336.1,0.8316]
[1759335978523,1.4742,4336.2,4336.1,1.7043]
[1759335979120,1.4742,4336.2,4336.1,1.7043]
[1759335979333,1.4742,4336.2,4336.1,2.11917]
[1759335981021,3.2078,4336.4,4336.3,1.86625]
[1759335981227,4.63279,4336.9,4336.8,1.2433]
[1759335981526,0.4071,4335.6,4335.5,1.0431]
[1759335981729,1.4219,4335.6,4335.5,42.4864]
[1759335981926,1.4219,4335.6,4335.5,42.90133]
[1759335982128,1.4219,4335.6,4335.5,42.90233]
[1759335982330,1.9352487,4335.6,4335.5,42.27943]
[1759335983025,1.9352487,4335.6,4335.5,42.90233]
[1759335985334,0.5133487,4335.6,4335.5,43.16313]
[1759335985929,1.1254487,4335.6,4335.5,42.90233]
[1759335986629,0.5133487,4335.6,4335.5,43.16313]
[1759335987034,0.5133487,4335.6,4335.5,43.16213]